[Event "Late-Titled-Tuesday-Blitz-March-26-2024"]
[Site "Chess.com"]
[Date "2024.03.26"]
[Round "2"]
[White "ExtremeLearner"]
[Black "GMJustin"]
[Result "1-0"]
[WhiteElo "2539"]
[BlackElo "2364"]
[TimeControl "180+1"]
[EndTime "14:20:11 PDT"]
[Termination "ExtremeLearner won on time"]

1. Nf3 {[%clk 0:03:00.9]} 1... Nf6 {[%clk 0:02:30.5]} 2. d4 {[%clk 0:02:59.6]}
2... e6 {[%clk 0:02:26.9]} 3. c4 {[%clk 0:02:59.5]} 3... b6 {[%clk 0:02:25.4]}
4. Nc3 {[%clk 0:02:50.2]} 4... Bb4 {[%clk 0:02:23.2]} 5. g3 {[%clk 0:02:45.5]}
5... Bb7 {[%clk 0:02:16.7]} 6. Bg2 {[%clk 0:02:35.1]} 6... Ne4 {[%clk
0:02:15.7]} 7. Qc2 {[%clk 0:02:04.3]} 7... Nxc3 {[%clk 0:01:49.7]} 8. bxc3
{[%clk 0:02:03.5]} 8... Be7 {[%clk 0:01:50.4]} 9. O-O {[%clk 0:01:53.9]} 9... f5
{[%clk 0:01:44.1]} 10. Nd2 {[%clk 0:01:47.8]} 10... Bxg2 {[%clk 0:01:42.2]} 11.
Kxg2 {[%clk 0:01:45.4]} 11... O-O {[%clk 0:01:42.3]} 12. f3 {[%clk 0:01:45.3]}
12... d5 {[%clk 0:01:26.3]} 13. cxd5 {[%clk 0:01:44]} 13... exd5 {[%clk
0:01:25.7]} 14. e3 {[%clk 0:01:37.1]} 14... c5 {[%clk 0:01:21.3]} 15. Nb3 {[%clk
0:01:30.5]} 15... Nc6 {[%clk 0:01:16.7]} 16. Bb2 {[%clk 0:00:08.2]} 16... c4
{[%clk 0:01:13.5]} 17. Nc1 {[%clk 0:00:03.4]} 17... b5 {[%clk 0:01:13.6]} 18.
Ne2 {[%clk 0:00:04.3]} 18... a5 {[%clk 0:01:12.9]} 19. Nf4 {[%clk 0:00:04.8]}
19... Qd7 {[%clk 0:01:12]} 20. h4 {[%clk 0:00:04.8]} 20... Rae8 {[%clk
0:01:01.3]} 21. Rae1 {[%clk 0:00:03.9]} 21... Bd8 {[%clk 0:00:54.3]} 22. Rf2
{[%clk 0:00:02.1]} 22... Bc7 {[%clk 0:00:52]} 23. Bc1 {[%clk 0:00:02.4]} 23...
Bxf4 {[%clk 0:00:40.2]} 24. gxf4 {[%clk 0:00:03.3]} 24... b4 {[%clk 0:00:40.6]}
25. Kh3 {[%clk 0:00:03.8]} 25... Nd8 {[%clk 0:00:23.5]} 26. Rg1 {[%clk
0:00:03.5]} 26... Ne6 {[%clk 0:00:21.7]} 27. Bd2 {[%clk 0:00:03.8]} 27... Rb8
{[%clk 0:00:16.2]} 28. Rfg2 {[%clk 0:00:03.6]} 28... Kh8 {[%clk 0:00:15.2]} 29.
Qc1 {[%clk 0:00:03.3]} 29... b3 {[%clk 0:00:14.6]} 30. axb3 {[%clk 0:00:03.4]}
30... cxb3 {[%clk 0:00:14.6]} 31. Qa3 {[%clk 0:00:04]} 31... a4 {[%clk
0:00:13.2]} 32. Ra1 {[%clk 0:00:03.9]} 32... Ra8 {[%clk 0:00:11.1]} 33. Rb1
{[%clk 0:00:04.3]} 33... Rfb8 {[%clk 0:00:10.4]} 34. Bc1 {[%clk 0:00:04.6]}
34... Qc6 {[%clk 0:00:08.1]} 35. Rbb2 {[%clk 0:00:05]} 35... Qc7 {[%clk
0:00:06.4]} 36. Bd2 {[%clk 0:00:05]} 36... Kg8 {[%clk 0:00:05.6]} 37. Rb1 {[%clk
0:00:04.8]} 37... Kf7 {[%clk 0:00:05]} 38. Rbg1 {[%clk 0:00:05.5]} 38... Qd7
{[%clk 0:00:04]} 39. Bc1 {[%clk 0:00:05.6]} 39... Rb6 {[%clk 0:00:03.4]} 40. Qa1
{[%clk 0:00:06.1]} 40... Qd6 {[%clk 0:00:03]} 41. Ba3 {[%clk 0:00:06.2]} 41...
Qd7 {[%clk 0:00:02.7]} 42. Qb2 {[%clk 0:00:06.8]} 42... Rb7 {[%clk 0:00:02.7]}
43. Rg3 {[%clk 0:00:07.3]} 43... Rc8 {[%clk 0:00:02.8]} 44. Qg2 {[%clk
0:00:07.7]} 44... Ke8 {[%clk 0:00:02.7]} 45. Qb2 {[%clk 0:00:06.8]} 45... Rc6
{[%clk 0:00:02.3]} 46. Rc1 {[%clk 0:00:07.2]} 46... Qc7 {[%clk 0:00:02.3]} 47.
Rg2 {[%clk 0:00:07.6]} 47... Qc8 {[%clk 0:00:02]} 48. Re1 {[%clk 0:00:07.9]}
48... Rxc3 {[%clk 0:00:01.1]} 49. Kh2 {[%clk 0:00:06.9]} 49... Rc2 {[%clk
0:00:01.3]} 50. Rxc2 {[%clk 0:00:06.2]} 50... Qxc2+ {[%clk 0:00:01.2]} 51. Qxc2
{[%clk 0:00:06.6]} 51... bxc2 {[%clk 0:00:01.8]} 52. Rc1 {[%clk 0:00:07.5]}
52... Rb3 {[%clk 0:00:01.9]} 53. Bd6 {[%clk 0:00:07.9]} 53... Rxe3 {[%clk
0:00:01.9]} 54. Rxc2 {[%clk 0:00:08.7]} 54... Nxd4 {[%clk 0:00:02.2]} 55. Rc7
{[%clk 0:00:08.5]} 55... Nxf3+ {[%clk 0:00:01.9]} 56. Kg2 {[%clk 0:00:09]} 56...
g6 {[%clk 0:00:01.8]} 57. Kf2 {[%clk 0:00:09]} 57... Rd3 {[%clk 0:00:01.6]} 58.
Re7+ {[%clk 0:00:09.4]} 58... Kd8 {[%clk 0:00:01.3]} 59. Rxh7 {[%clk 0:00:10.3]}
59... Nd4 {[%clk 0:00:01.7]} 60. Bc7+ {[%clk 0:00:10.7]} 60... Kc8 {[%clk
0:00:01.8]} 61. Be5 {[%clk 0:00:11.4]} 61... Ne6 {[%clk 0:00:02.1]} 62. Re7
{[%clk 0:00:11.6]} 62... Nc5 {[%clk 0:00:02.1]} 63. Rc7+ {[%clk 0:00:11.9]}
63... Kd8 {[%clk 0:00:01.9]} 64. Rxc5 {[%clk 0:00:12.8]} 64... Rd2+ {[%clk
0:00:01.5]} 65. Ke3 {[%clk 0:00:13]} 65... Rh2 {[%clk 0:00:01.7]} 66. Rxd5+
{[%clk 0:00:13.4]} 1-0

[Event "Late-Titled-Tuesday-Blitz-March-26-2024"]
[Site "Chess.com"]
[Date "2024.03.26"]
[Round "2"]
[White "Good_Knight_Kiss"]
[Black "N_I_Chess"]
[Result "0-1"]
[WhiteElo "2507"]
[BlackElo "2326"]
[TimeControl "180+1"]
[EndTime "14:20:23 PDT"]
[Termination "N_I_Chess won by checkmate"]

1. e4 {[%clk 0:03:00.9]} 1... Nf6 {[%clk 0:02:56.4]} 2. e5 {[%clk 0:03:00.6]}
2... Nd5 {[%clk 0:02:56.3]} 3. c4 {[%clk 0:02:58.4]} 3... Nb6 {[%clk 0:02:55.6]}
4. d4 {[%clk 0:02:58.2]} 4... d6 {[%clk 0:02:56.1]} 5. exd6 {[%clk 0:02:57.8]}
5... cxd6 {[%clk 0:02:57]} 6. Nc3 {[%clk 0:02:56.3]} 6... g6 {[%clk 0:02:57.4]}
7. Be3 {[%clk 0:02:56.3]} 7... Bg7 {[%clk 0:02:57.7]} 8. Rc1 {[%clk 0:02:56.5]}
8... O-O {[%clk 0:02:57.9]} 9. b3 {[%clk 0:02:56.9]} 9... Bf5 {[%clk 0:02:58]}
10. Be2 {[%clk 0:02:55]} 10... d5 {[%clk 0:02:58]} 11. c5 {[%clk 0:02:52.3]}
11... Nc8 {[%clk 0:02:57.2]} 12. Nf3 {[%clk 0:02:41.3]} 12... Nc6 {[%clk
0:02:56.7]} 13. O-O {[%clk 0:02:38.3]} 13... Bg4 {[%clk 0:02:51.7]} 14. Qd2
{[%clk 0:02:30.6]} 14... e6 {[%clk 0:02:50.1]} 15. Bh6 {[%clk 0:02:22.8]} 15...
Bxh6 {[%clk 0:02:23.4]} 16. Qxh6 {[%clk 0:02:21.5]} 16... Bxf3 {[%clk
0:02:23.9]} 17. Bxf3 {[%clk 0:02:21]} 17... Nxd4 {[%clk 0:02:24.4]} 18. Bd1
{[%clk 0:02:19.4]} 18... Ne7 {[%clk 0:02:19.5]} 19. Re1 {[%clk 0:02:14.2]} 19...
Rc8 {[%clk 0:02:17.7]} 20. b4 {[%clk 0:02:12]} 20... Nef5 {[%clk 0:02:15.6]} 21.
Qd2 {[%clk 0:02:10.7]} 21... Qf6 {[%clk 0:02:13.6]} 22. Qf4 {[%clk 0:01:46.5]}
22... Kg7 {[%clk 0:02:02.7]} 23. g3 {[%clk 0:01:27.6]} 23... Rfe8 {[%clk
0:01:51.9]} 24. Bg4 {[%clk 0:01:17.9]} 24... h5 {[%clk 0:01:41]} 25. Bxf5 {[%clk
0:01:11.5]} 25... Nxf5 {[%clk 0:01:41.9]} 26. Nb5 {[%clk 0:01:07.6]} 26... Qb2
{[%clk 0:01:23.6]} 27. Nxa7 {[%clk 0:00:43.3]} 27... Ra8 {[%clk 0:01:21.1]} 28.
Nb5 {[%clk 0:00:43.3]} 28... Rxa2 {[%clk 0:01:16.9]} 29. Rb1 {[%clk 0:00:28.3]}
29... Qd2 {[%clk 0:01:10.9]} 30. Qxd2 {[%clk 0:00:23.5]} 30... Rxd2 {[%clk
0:01:11.8]} 31. Ra1 {[%clk 0:00:21.9]} 31... Rb2 {[%clk 0:01:07.9]} 32. Reb1
{[%clk 0:00:18.9]} 32... Rxb1+ {[%clk 0:01:08.3]} 33. Rxb1 {[%clk 0:00:19.8]}
33... Ra8 {[%clk 0:01:08.9]} 34. Rc1 {[%clk 0:00:17.5]} 34... Ra4 {[%clk
0:01:05.8]} 35. Nd6 {[%clk 0:00:16.9]} 35... Rxb4 {[%clk 0:01:03.4]} 36. Nxf5+
{[%clk 0:00:13.4]} 36... gxf5 {[%clk 0:01:04.3]} 37. c6 {[%clk 0:00:13.5]} 37...
bxc6 {[%clk 0:01:03.8]} 38. Rxc6 {[%clk 0:00:14.4]} 38... f4 {[%clk 0:01:01]}
39. Kg2 {[%clk 0:00:11.1]} 39... Kf6 {[%clk 0:00:58.9]} 40. Rc7 {[%clk
0:00:09.3]} 40... fxg3 {[%clk 0:00:57.7]} 41. hxg3 {[%clk 0:00:09]} 41... Rb5
{[%clk 0:00:57]} 42. Rd7 {[%clk 0:00:08]} 42... Rb8 {[%clk 0:00:56.5]} 43. Kf3
{[%clk 0:00:07.5]} 43... Rf8 {[%clk 0:00:55.8]} 44. Kf4 {[%clk 0:00:07.1]} 44...
Rb8 {[%clk 0:00:54.3]} 45. Kf3 {[%clk 0:00:04]} 45... Rb3+ {[%clk 0:00:54.3]}
46. Ke2 {[%clk 0:00:03.6]} 46... Kg6 {[%clk 0:00:54]} 47. Kd2 {[%clk 0:00:03.7]}
47... f6 {[%clk 0:00:53.9]} 48. Ke2 {[%clk 0:00:03.6]} 48... Kf5 {[%clk
0:00:54.1]} 49. Rh7 {[%clk 0:00:03.4]} 49... Kg6 {[%clk 0:00:53.4]} 50. Re7
{[%clk 0:00:03.5]} 50... e5 {[%clk 0:00:53.5]} 51. Rd7 {[%clk 0:00:03.7]} 51...
d4 {[%clk 0:00:53.3]} 52. Rd6 {[%clk 0:00:04.1]} 52... Kg5 {[%clk 0:00:52.3]}
53. Kf1 {[%clk 0:00:03.4]} 53... Kf5 {[%clk 0:00:49.4]} 54. Ke2 {[%clk
0:00:03.2]} 54... Rb2+ {[%clk 0:00:49]} 55. Kf1 {[%clk 0:00:03]} 55... Rc2
{[%clk 0:00:48.6]} 56. Kg2 {[%clk 0:00:02.9]} 56... Rc8 {[%clk 0:00:41.4]} 57.
Kf1 {[%clk 0:00:02.9]} 57... Rf8 {[%clk 0:00:41.9]} 58. Ke2 {[%clk 0:00:03.1]}
58... Ke4 {[%clk 0:00:42.1]} 59. f3+ {[%clk 0:00:03.5]} 59... Kf5 {[%clk
0:00:42.5]} 60. Kd3 {[%clk 0:00:02.9]} 60... Rg8 {[%clk 0:00:42.2]} 61. g4+
{[%clk 0:00:01.5]} 61... hxg4 {[%clk 0:00:42]} 62. fxg4+ {[%clk 0:00:01.8]}
62... Rxg4 {[%clk 0:00:42.5]} 63. Ke2 {[%clk 0:00:02.5]} 63... Rg3 {[%clk
0:00:42.8]} 64. Kf2 {[%clk 0:00:02.2]} 64... Ra3 {[%clk 0:00:43.2]} 65. Ke2
{[%clk 0:00:02.6]} 65... Ke4 {[%clk 0:00:43.6]} 66. Rxf6 {[%clk 0:00:02.2]}
66... Ra2+ {[%clk 0:00:44.3]} 67. Kd1 {[%clk 0:00:01.5]} 67... Ke3 {[%clk
0:00:44.4]} 68. Re6 {[%clk 0:00:01.6]} 68... e4 {[%clk 0:00:44]} 69. Kc1 {[%clk
0:00:02]} 69... d3 {[%clk 0:00:43.6]} 70. Rh6 {[%clk 0:00:02]} 70... d2+ {[%clk
0:00:43.1]} 71. Kd1 {[%clk 0:00:02]} 71... Ra1+ {[%clk 0:00:43.3]} 72. Kc2
{[%clk 0:00:01.8]} 72... d1=Q+ {[%clk 0:00:44.2]} 73. Kc3 {[%clk 0:00:01.9]}
73... Rc1+ {[%clk 0:00:44.8]} 74. Kb4 {[%clk 0:00:02.1]} 74... Qd2+ {[%clk
0:00:44.9]} 75. Ka4 {[%clk 0:00:01.6]} 75... Qa2+ {[%clk 0:00:44.3]} 76. Kb4
{[%clk 0:00:01.2]} 76... Qb2+ {[%clk 0:00:45.2]} 77. Ka4 {[%clk 0:00:01.1]}
77... Ra1# {[%clk 0:00:46.1]} 0-1

[Event "Late-Titled-Tuesday-Blitz-March-26-2024"]
[Site "Chess.com"]
[Date "2024.03.26"]
[Round "2"]
[White "ContrVersia"]
[Black "NMJeevanK"]
[Result "1-0"]
[WhiteElo "2927"]
[BlackElo "2613"]
[TimeControl "180+1"]
[EndTime "14:20:35 PDT"]
[Termination "ContrVersia won by resignation"]

1. Nf3 {[%clk 0:03:00.9]} 1... d5 {[%clk 0:02:58.4]} 2. c4 {[%clk 0:03:00.5]}
2... e6 {[%clk 0:02:57.5]} 3. g3 {[%clk 0:03:00.4]} 3... Nf6 {[%clk 0:02:57.9]}
4. Bg2 {[%clk 0:02:59.9]} 4... Be7 {[%clk 0:02:58.2]} 5. O-O {[%clk 0:02:59.9]}
5... O-O {[%clk 0:02:58.6]} 6. b3 {[%clk 0:03:00.4]} 6... c5 {[%clk 0:02:58.3]}
7. Bb2 {[%clk 0:02:59.6]} 7... Nc6 {[%clk 0:02:58.7]} 8. e3 {[%clk 0:02:59.8]}
8... Bd7 {[%clk 0:02:57.3]} 9. Nc3 {[%clk 0:02:58.9]} 9... Rc8 {[%clk
0:02:56.8]} 10. Qe2 {[%clk 0:02:57.7]} 10... Re8 {[%clk 0:02:41.7]} 11. Rad1
{[%clk 0:02:46.3]} 11... Qa5 {[%clk 0:02:35.5]} 12. d4 {[%clk 0:02:13.6]} 12...
cxd4 {[%clk 0:02:25.7]} 13. exd4 {[%clk 0:02:13.8]} 13... Bb4 {[%clk 0:02:25.8]}
14. Rc1 {[%clk 0:02:09.8]} 14... dxc4 {[%clk 0:02:05.7]} 15. bxc4 {[%clk
0:02:09.2]} 15... e5 {[%clk 0:02:05.6]} 16. dxe5 {[%clk 0:01:30]} 16... Nxe5
{[%clk 0:02:06.5]} 17. Nxe5 {[%clk 0:01:29.4]} 17... Rxe5 {[%clk 0:02:05.7]} 18.
Ne4 {[%clk 0:01:28.8]} 18... Rxe4 {[%clk 0:00:56.4]} 19. Bxe4 {[%clk 0:01:24.7]}
19... Bg4 {[%clk 0:00:54.3]} 20. Bf3 {[%clk 0:01:18.4]} 20... Re8 {[%clk
0:00:50.1]} 21. Qd3 {[%clk 0:01:11.3]} 21... Bh3 {[%clk 0:00:37.4]} 22. Rfd1
{[%clk 0:01:08.4]} 22... Qb6 {[%clk 0:00:27.6]} 23. Bd4 {[%clk 0:01:04.1]} 23...
Bc5 {[%clk 0:00:26.8]} 24. Rb1 {[%clk 0:00:50.8]} 24... Qa5 {[%clk 0:00:24.3]}
25. Bg2 {[%clk 0:00:31.9]} 25... Bg4 {[%clk 0:00:21.2]} 26. Rdc1 {[%clk
0:00:17.5]} 26... Rd8 {[%clk 0:00:20.9]} 27. Rb5 {[%clk 0:00:09.6]} 27... Qc7
{[%clk 0:00:13.6]} 28. Rxc5 {[%clk 0:00:05.8]} 28... Qxc5 {[%clk 0:00:13.8]} 29.
Bxc5 {[%clk 0:00:06.4]} 29... Rxd3 {[%clk 0:00:14.4]} 30. Bxa7 {[%clk
0:00:07.3]} 30... Ra3 {[%clk 0:00:12.2]} 31. Bd4 {[%clk 0:00:07.6]} 31... Rxa2
{[%clk 0:00:11.2]} 32. Bxb7 {[%clk 0:00:07.8]} 32... Ne8 {[%clk 0:00:10.2]} 33.
Bg2 {[%clk 0:00:07.3]} 33... Nc7 {[%clk 0:00:08.8]} 34. h3 {[%clk 0:00:07.5]}
34... Be6 {[%clk 0:00:07.8]} 35. c5 {[%clk 0:00:07.9]} 35... Nb5 {[%clk
0:00:07.7]} 36. Be3 {[%clk 0:00:07.9]} 36... Ra7 {[%clk 0:00:06.3]} 37. c6
{[%clk 0:00:08.3]} 37... Rc7 {[%clk 0:00:06.9]} 38. Bf4 {[%clk 0:00:08.5]} 38...
Rc8 {[%clk 0:00:07.4]} 39. c7 {[%clk 0:00:09.1]} 39... Na7 {[%clk 0:00:05.9]}
40. Bb7 {[%clk 0:00:08.7]} 40... Re8 {[%clk 0:00:06.2]} 41. g4 {[%clk
0:00:08.9]} 41... Nc8 {[%clk 0:00:06.6]} 42. Rd1 {[%clk 0:00:08.3]} 42... f6
{[%clk 0:00:06.8]} 43. Rd8 {[%clk 0:00:08.4]} 43... Kf7 {[%clk 0:00:06.1]} 44.
Bc6 {[%clk 0:00:08.2]} 44... Rf8 {[%clk 0:00:05.4]} 45. Be3 {[%clk 0:00:07.9]}
45... Ne7 {[%clk 0:00:05.5]} 46. Rxf8+ {[%clk 0:00:07]} 46... Kxf8 {[%clk
0:00:04.9]} 47. Bc5 {[%clk 0:00:07.9]} 47... Bc8 {[%clk 0:00:05.4]} 48. Bd5
{[%clk 0:00:07]} 48... Ke8 {[%clk 0:00:05.5]} 49. Be4 {[%clk 0:00:06.7]} 49...
g6 {[%clk 0:00:04.2]} 50. Bd6 {[%clk 0:00:06.3]} 50... f5 {[%clk 0:00:04.5]} 51.
Bf3 {[%clk 0:00:06.2]} 51... Kd7 {[%clk 0:00:03.4]} 52. Be5 {[%clk 0:00:05.9]}
52... Ke6 {[%clk 0:00:03.6]} 53. Bf4 {[%clk 0:00:05.6]} 53... Kd7 {[%clk
0:00:03.8]} 54. Kg2 {[%clk 0:00:05.2]} 54... Nc6 {[%clk 0:00:03.6]} 55. Kg3
{[%clk 0:00:05.2]} 55... Ne7 {[%clk 0:00:02.4]} 56. Bg2 {[%clk 0:00:04.4]} 56...
Ke6 {[%clk 0:00:02.9]} 57. g5 {[%clk 0:00:04.7]} 57... Nd5 {[%clk 0:00:03.2]}
58. Bf3 {[%clk 0:00:04]} 58... Nxf4 {[%clk 0:00:03.5]} 59. Kxf4 {[%clk
0:00:04.9]} 59... Kd6 {[%clk 0:00:04.2]} 60. h4 {[%clk 0:00:04.9]} 60... Be6
{[%clk 0:00:04.1]} 61. Bg2 {[%clk 0:00:04.3]} 61... Kxc7 {[%clk 0:00:04.2]} 62.
Ke5 {[%clk 0:00:04.8]} 62... Kd7 {[%clk 0:00:03.5]} 63. Kf6 {[%clk 0:00:05.1]}
63... Kd6 {[%clk 0:00:03.4]} 64. f4 {[%clk 0:00:04.4]} 64... Kd7 {[%clk
0:00:03.4]} 65. Kg7 {[%clk 0:00:04.4]} 65... Ke7 {[%clk 0:00:04.3]} 66. Kxh7
{[%clk 0:00:04.8]} 66... Bf7 {[%clk 0:00:04.8]} 67. Kh6 {[%clk 0:00:05.2]} 67...
Kf8 {[%clk 0:00:05]} 68. Bf3 {[%clk 0:00:05.5]} 68... Kg8 {[%clk 0:00:05.1]} 69.
h5 {[%clk 0:00:06.2]} 69... gxh5 {[%clk 0:00:04.2]} 70. Bxh5 {[%clk 0:00:07.1]}
70... Bd5 {[%clk 0:00:03.9]} 71. Bg6 {[%clk 0:00:06.8]} 71... Be6 {[%clk
0:00:04.2]} 72. Bh5 {[%clk 0:00:06.7]} 72... Bd7 {[%clk 0:00:04.3]} 73. Be2
{[%clk 0:00:07.2]} 73... Be6 {[%clk 0:00:04.7]} 74. Bd3 {[%clk 0:00:07.5]} 74...
Kf7 {[%clk 0:00:04.9]} 75. g6+ {[%clk 0:00:07.4]} 75... Kf8 {[%clk 0:00:04.1]}
76. Kh7 {[%clk 0:00:07]} 76... Bg8+ {[%clk 0:00:03.8]} 77. Kh8 {[%clk
0:00:07.5]} 77... Be6 {[%clk 0:00:04.5]} 78. g7+ {[%clk 0:00:07.8]} 78... Ke7
{[%clk 0:00:05.4]} 79. Bxf5 {[%clk 0:00:07.9]} 79... Bg8 {[%clk 0:00:06.3]} 80.
Bh7 {[%clk 0:00:07.9]} 1-0

[Event "Late-Titled-Tuesday-Blitz-March-26-2024"]
[Site "Chess.com"]
[Date "2024.03.26"]
[Round "2"]
[White "Elsa167"]
[Black "Quattroporte300"]
[Result "1/2-1/2"]
[WhiteElo "2795"]
[BlackElo "2483"]
[TimeControl "180+1"]
[EndTime "14:20:59 PDT"]
[Termination "Game drawn - insufficient material"]

1. d4 {[%clk 0:03:00.9]} 1... d5 {[%clk 0:02:54.8]} 2. c4 {[%clk 0:03:00.9]}
2... dxc4 {[%clk 0:02:53.4]} 3. e3 {[%clk 0:03:01.1]} 3... Nf6 {[%clk 0:02:53]}
4. Bxc4 {[%clk 0:03:01.6]} 4... e6 {[%clk 0:02:53.3]} 5. Nf3 {[%clk 0:03:02.3]}
5... c5 {[%clk 0:02:53.1]} 6. O-O {[%clk 0:03:02.8]} 6... a6 {[%clk 0:02:53.6]}
7. b3 {[%clk 0:03:03.4]} 7... Nc6 {[%clk 0:02:52.4]} 8. Bb2 {[%clk 0:03:03.2]}
8... Be7 {[%clk 0:02:51.9]} 9. dxc5 {[%clk 0:02:58.9]} 9... Qxd1 {[%clk
0:02:50.2]} 10. Rxd1 {[%clk 0:02:58.8]} 10... Bxc5 {[%clk 0:02:50]} 11. a3
{[%clk 0:02:55.6]} 11... Ke7 {[%clk 0:02:46.5]} 12. b4 {[%clk 0:02:55.7]} 12...
Ba7 {[%clk 0:02:45.3]} 13. Nbd2 {[%clk 0:02:55.3]} 13... b5 {[%clk 0:02:45.1]}
14. Be2 {[%clk 0:02:54.9]} 14... Bb7 {[%clk 0:02:44.4]} 15. Nb3 {[%clk
0:02:54.5]} 15... Rac8 {[%clk 0:02:41.3]} 16. Rac1 {[%clk 0:02:50.5]} 16... Rhd8
{[%clk 0:02:40.3]} 17. Rxd8 {[%clk 0:02:44.6]} 17... Nxd8 {[%clk 0:02:32.6]} 18.
Nc5 {[%clk 0:02:44.8]} 18... Bxc5 {[%clk 0:02:28.7]} 19. bxc5 {[%clk 0:02:45.2]}
19... Nd7 {[%clk 0:02:21.7]} 20. a4 {[%clk 0:02:16.4]} 20... b4 {[%clk
0:02:12.5]} 21. Bxg7 {[%clk 0:02:02]} 21... Rxc5 {[%clk 0:02:07.3]} 22. Rb1
{[%clk 0:01:59.7]} 22... a5 {[%clk 0:02:05.1]} 23. Bd4 {[%clk 0:01:59.1]} 23...
Rc2 {[%clk 0:02:01.2]} 24. Bd3 {[%clk 0:01:59.1]} 24... Ra2 {[%clk 0:01:59.3]}
25. Bb5 {[%clk 0:01:52.4]} 25... Bc6 {[%clk 0:01:52.1]} 26. h4 {[%clk
0:01:47.7]} 26... f6 {[%clk 0:01:47.7]} 27. Ne1 {[%clk 0:01:18.2]} 27... e5
{[%clk 0:01:46.2]} 28. Bb2 {[%clk 0:01:17.9]} 28... Nb6 {[%clk 0:01:34.7]} 29.
Bc1 {[%clk 0:01:05]} 29... Nxa4 {[%clk 0:01:31.1]} 30. Bc4 {[%clk 0:01:05.4]}
30... Nc3 {[%clk 0:01:17.9]} 31. Bxa2 {[%clk 0:01:05.6]} 31... Nxa2 {[%clk
0:01:18.2]} 32. Bd2 {[%clk 0:01:00.2]} 32... Nb7 {[%clk 0:01:11.6]} 33. Rb2
{[%clk 0:00:57.1]} 33... Bd5 {[%clk 0:01:09.7]} 34. e4 {[%clk 0:00:57.6]} 34...
Be6 {[%clk 0:01:08.9]} 35. Nd3 {[%clk 0:00:56.5]} 35... Kd6 {[%clk 0:01:00.6]}
36. Nxb4 {[%clk 0:00:20.8]} 36... Nxb4 {[%clk 0:00:54.4]} 37. Bxb4+ {[%clk
0:00:21.7]} 37... axb4 {[%clk 0:00:54.7]} 38. Rxb4 {[%clk 0:00:22.6]} 38... Nc5
{[%clk 0:00:53.8]} 39. f3 {[%clk 0:00:22.5]} 39... h5 {[%clk 0:00:46.9]} 40. Rb8
{[%clk 0:00:22.3]} 40... Bf7 {[%clk 0:00:44.3]} 41. Kf2 {[%clk 0:00:22]} 41...
Nd3+ {[%clk 0:00:40.4]} 42. Ke3 {[%clk 0:00:21.9]} 42... Nf4 {[%clk 0:00:41.1]}
43. g3 {[%clk 0:00:21.1]} 43... Ne6 {[%clk 0:00:39.7]} 44. Rb7 {[%clk
0:00:19.1]} 44... Bg6 {[%clk 0:00:38]} 45. Ra7 {[%clk 0:00:16.6]} 45... Nd4
{[%clk 0:00:29]} 46. g4 {[%clk 0:00:12.3]} 46... Ne6 {[%clk 0:00:26.3]} 47. Rb7
{[%clk 0:00:06.3]} 47... Nf4 {[%clk 0:00:23.4]} 48. Rg7 {[%clk 0:00:05.6]} 48...
Ke6 {[%clk 0:00:21.9]} 49. Ra7 {[%clk 0:00:04]} 49... Ng2+ {[%clk 0:00:20.5]}
50. Kf2 {[%clk 0:00:03.7]} 50... Nf4 {[%clk 0:00:17]} 51. Ra6+ {[%clk
0:00:04.1]} 51... Kf7 {[%clk 0:00:16.8]} 52. Kg3 {[%clk 0:00:04.1]} 52... Ne2+
{[%clk 0:00:15.5]} 53. Kf2 {[%clk 0:00:04.6]} 53... Nf4 {[%clk 0:00:16]} 54. Rb6
{[%clk 0:00:05.3]} 54... hxg4 {[%clk 0:00:15.3]} 55. fxg4 {[%clk 0:00:05.7]}
55... Bxe4 {[%clk 0:00:16]} 56. h5 {[%clk 0:00:03.9]} 56... Kg7 {[%clk
0:00:15.5]} 57. Ra6 {[%clk 0:00:02.6]} 57... Nd5 {[%clk 0:00:13.9]} 58. Kg3
{[%clk 0:00:03]} 58... Ne3 {[%clk 0:00:10.2]} 59. Kh4 {[%clk 0:00:02.8]} 59...
Ng2+ {[%clk 0:00:09.9]} 60. Kg3 {[%clk 0:00:03.2]} 60... Nf4 {[%clk 0:00:10.6]}
61. Ra7+ {[%clk 0:00:02.3]} 61... Kh6 {[%clk 0:00:10.1]} 62. Rf7 {[%clk
0:00:02.9]} 62... Nd5 {[%clk 0:00:07.9]} 63. Kh4 {[%clk 0:00:03.6]} 63... Bd3
{[%clk 0:00:06.8]} 64. Rd7 {[%clk 0:00:04]} 64... Nf4 {[%clk 0:00:06.4]} 65. Rd6
{[%clk 0:00:04.5]} 65... Kg7 {[%clk 0:00:06.3]} 66. Rd7+ {[%clk 0:00:04.6]}
66... Kh6 {[%clk 0:00:06.2]} 67. Rf7 {[%clk 0:00:04.4]} 67... Nd5 {[%clk
0:00:05.6]} 68. Kg3 {[%clk 0:00:04.4]} 68... e4 {[%clk 0:00:05.3]} 69. Rd7
{[%clk 0:00:04.8]} 69... Bc4 {[%clk 0:00:04.2]} 70. Rd6 {[%clk 0:00:04.8]} 70...
Kg5 {[%clk 0:00:03.5]} 71. Rd7 {[%clk 0:00:04.6]} 71... Bd3 {[%clk 0:00:03.7]}
72. Rg7+ {[%clk 0:00:04.7]} 72... Kh6 {[%clk 0:00:03.7]} 73. Rg6+ {[%clk
0:00:05.3]} 73... Kh7 {[%clk 0:00:04.4]} 74. g5 {[%clk 0:00:05.8]} 74... fxg5
{[%clk 0:00:04.2]} 75. Rxg5 {[%clk 0:00:06.7]} 75... Nf6 {[%clk 0:00:04.7]} 76.
Kf4 {[%clk 0:00:05.7]} 76... Bc2 {[%clk 0:00:04.3]} 77. Rf5 {[%clk 0:00:05.3]}
77... Ng8 {[%clk 0:00:04.3]} 78. Kg5 {[%clk 0:00:03.9]} 78... Bd3 {[%clk
0:00:02.9]} 79. Rf7+ {[%clk 0:00:03.9]} 79... Kh8 {[%clk 0:00:03.6]} 80. h6
{[%clk 0:00:03.4]} 80... e3 {[%clk 0:00:04.1]} 81. Rf3 {[%clk 0:00:01.4]} 81...
e2 {[%clk 0:00:04]} 82. Re3 {[%clk 0:00:02.1]} 82... Kh7 {[%clk 0:00:03.9]} 83.
Kf4 {[%clk 0:00:01.8]} 83... Nxh6 {[%clk 0:00:04]} 84. Kg3 {[%clk 0:00:01.8]}
84... Bc4 {[%clk 0:00:04]} 85. Kf2 {[%clk 0:00:02]} 85... Kg6 {[%clk 0:00:03.2]}
86. Rxe2 {[%clk 0:00:02.4]} 86... Bxe2 {[%clk 0:00:02.8]} 87. Kxe2 {[%clk
0:00:03.3]} 1/2-1/2